fUST/lending_fUST_20250730
["ID","MTS","AMOUNT","RATE_DAILY","PERIOD"]
[376025355,1753827044267,-1070.1,0.00019993,2]
[376025357,1753827044276,-1469.93,0.00019993,2]
[376025359,1753827044285,-460.0,0.00019993,2]
[376025361,1753827044295,-165.83448744,0.00019993,2]
[376025363,1753827044307,-1552.34,0.00019993,2]
[376025365,1753827044317,-312.86356116,0.00019993,2]
[376025367,1753827044330,-147.13643884,0.00019993,2]
[376025369,1753827044339,-284.74349626,0.00019993,2]
[376025372,1753827044355,-326.84650374,0.00019993,2]
[376025374,1753827044365,-2329.0,0.00019993,2]
[376025376,1753827044374,-596.36,0.00019994,2]
[376025378,1753827044383,-460.0,0.00019994,2]
[376025380,1753827044393,-472.85,0.00019994,2]
[376025382,1753827044402,-541.16,0.00019994,2]
[376025384,1753827044413,-460.0,0.00019994,2]
[376025386,1753827044422,-621.75,0.00019994,2]
[376025388,1753827044432,-779.68,0.00019994,2]
[376025390,1753827044441,-460.0,0.00019994,2]
[376025392,1753827044451,-460.0,0.00019994,2]
[376025394,1753827044460,-497.69,0.00019994,2]
[376025396,1753827044470,-755.67,0.00019994,2]
[376025398,1753827044479,-206.9936,0.00019994,2]
[376025400,1753827044489,-239.16,0.00019994,2]
[376025402,1753827044499,-550.2,0.00019994,2]
[376025404,1753827044508,-460.0,0.00019994,2]
[376025406,1753827044518,-460.0,0.00019994,2]
[376025407,1753827044528,-460.0,0.00019994,2]
[376025409,1753827044537,-572.88,0.00019994,2]
[376025411,1753827044547,-543.73,0.00019994,2]
[376025413,1753827044558,-460.0,0.00019994,2]
[376025414,1753827044568,-460.0,0.00019994,2]
[376025416,1753827044577,-460.0,0.00019994,2]
[376025418,1753827044587,-300.0,0.0002,2]
[376025420,1753827044597,-460.0,0.00020006,2]
[376025421,1753827044607,-588.15,0.00020006,2]
[376025422,1753827044617,-1366.57,0.00020006,2]
[376025423,1753827044626,-4198.76,0.00020006,2]
[376025424,1753827044636,-1098.41,0.00020006,2]
[376025425,1753827044646,-1052.65,0.00020006,2]
[376025426,1753827044656,-460.0,0.00020006,2]
[376025427,1753827044665,-460.0,0.00020006,2]
[376025428,1753827044675,-1567.84,0.00020006,2]
[376025429,1753827044685,-151.0,0.00020008,2]
[376025430,1753827044695,-1275.89,0.00020008,2]
[376025431,1753827044704,-460.0,0.00020008,2]
[376025432,1753827044713,-774.72,0.00020008,2]
[376025433,1753827044723,-1025.02,0.00020008,2]
[376025434,1753827044732,-393.26177566,0.00020023,2]
[376025435,1753827044741,-289.28896123,0.00020029,2]
[376025436,1753827044751,-1115.55989559,0.00020056,2]
[376025437,1753827044760,-1004.76261434,0.00020056,2]
[376025438,1753827044769,-500.0,0.00020056,2]
[376025439,1753827044779,-909.14410612,0.00020056,2]
[376025440,1753827044788,-1000.0,0.00020056,2]
[376025441,1753827044797,-533.9,0.00020089,3]
[376025442,1753827044808,-151.0,0.000201,3]
[376025443,1753827044817,-1004.52538243,0.0002011,2]
[376025444,1753827044827,-1000.0,0.00020133,2]
[376025445,1753827044836,-503.40990452,0.00020133,2]
[376025446,1753827044845,-151.0,0.00020182,2]
[376025447,1753827044854,-2159.0,0.00020182,2]
[376025448,1753827044864,-969.0,0.00020182,2]
[376025449,1753827044873,-407.0,0.00020182,2]
[376025450,1753827044883,-425.682,0.00020182,2]
[376025451,1753827044892,-379.118575,0.00020187,2]
[376025452,1753827044903,-152.89351755,0.00020232,2]
[376025453,1753827044913,-500.0,0.0002026,2]
[376025454,1753827044923,-3530.26,0.00020267,2]
[376025455,1753827044933,-460.0,0.00020267,2]
[376025456,1753827044943,-1759.16,0.00020267,2]
[376025457,1753827044952,-460.0,0.00020267,2]
[376025458,1753827044962,-460.0,0.00020267,2]
[376025459,1753827044971,-1070.1,0.00020267,2]
[376025460,1753827044981,-1469.93,0.00020267,2]
[376025461,1753827044991,-460.0,0.00020267,2]
[376025462,1753827045000,-1552.34,0.00020267,2]
[376025463,1753827045012,-460.0,0.00020267,2]
[376025464,1753827045021,-611.59,0.00020267,2]
[376025465,1753827045030,-2329.0,0.00020267,2]
[376025466,1753827045039,-596.36,0.00020268,2]
[376025467,1753827045048,-460.0,0.00020268,2]
[376025468,1753827045058,-541.16,0.00020268,2]
[376025469,1753827045067,-460.0,0.00020268,2]
[376025470,1753827045076,-621.75,0.00020268,2]
[376025471,1753827045085,-779.68,0.00020268,2]
[376025472,1753827045094,-460.0,0.00020268,2]
[376025473,1753827045103,-151.0,0.00020268,2]
[376025474,1753827045113,-460.0,0.00020268,2]
[376025475,1753827045125,-497.69,0.00020268,2]
[376025476,1753827045134,-755.67,0.00020268,2]
[376025477,1753827045143,-550.2,0.00020268,2]
[376025478,1753827045153,-460.0,0.00020268,2]
[376025479,1753827045162,-460.0,0.00020268,2]
[376025480,1753827045171,-362.75310159,0.00020268,2]
[376025481,1753827045180,-543.73,0.00020268,2]
[376025482,1753827045189,-572.88,0.00020268,2]
[376025483,1753827045203,-460.0,0.00020268,2]
[376025484,1753827045212,-460.0,0.00020268,2]
[376025485,1753827045222,-151.0,0.00020268,2]
[376025486,1753827045231,-460.0,0.00020268,2]
[376025487,1753827045240,-151.0,0.00020279,2]
[376025488,1753827045249,-460.0,0.0002028,2]
[376025489,1753827045258,-588.15,0.0002028,2]
[376025490,1753827045268,-1366.57,0.0002028,2]
[376025491,1753827045278,-2078.01918149,0.0002028,2]
[376025492,1753827045411,-1136.09,0.00019732,2]
[376025493,1753827045421,-81.4151285,0.00020006,2]
[376025494,1753827045437,-1054.6748715,0.00020006,2]
[376025495,1753827045447,-2120.74081851,0.0002028,2]
[376025496,1753827045457,-1098.41,0.0002028,2]
[376025497,1753827045466,-1052.65,0.0002028,2]
[376025498,1753827045476,-460.0,0.0002028,2]
[376025499,1753827045486,-460.0,0.0002028,2]
[376025500,1753827045495,-1567.84,0.0002028,2]
[376025501,1753827045505,-1136.09,0.0002028,2]
[376025502,1753827045514,-1275.89,0.00020282,2]
[376025503,1753827045524,-460.0,0.00020282,2]
[376025504,1753827045534,-774.72,0.00020282,2]
[376025505,1753827045543,-1025.02,0.00020282,2]
[376025506,1753827045552,-227.294,0.00020327,2]
[376025507,1753827045562,-533.9,0.00020327,3]
[376025508,1753827045573,-151.0,0.00020397,2]
[376025509,1753827045583,-409.0,0.00020408,2]
[376025510,1753827045593,-160.0,0.00020422,2]
[376025511,1753827045602,-151.0,0.000205,3]
[376025512,1753827045612,-3675.6,0.00020531,3]
[376025513,1753827045621,-1837.8,0.00020531,3]
[376025514,1753827045631,-918.9,0.00020531,3]
[376025515,1753827045642,-460.0,0.00020541,2]
[376025516,1753827045651,-3530.26,0.00020541,2]
[376025517,1753827045661,-1759.16,0.00020541,2]
[376025518,1753827045670,-460.0,0.00020541,2]
[376025519,1753827045679,-460.0,0.00020541,2]
[376025520,1753827045689,-1070.1,0.00020541,2]
[376025521,1753827045698,-1469.93,0.00020541,2]
[376025522,1753827045707,-460.0,0.00020541,2]
[376025523,1753827045717,-1552.34,0.00020541,2]
[376025524,1753827045727,-460.0,0.00020541,2]
[376025525,1753827045737,-611.59,0.00020541,2]
[376025526,1753827045746,-2329.0,0.00020541,2]
[376025527,1753827045756,-596.36,0.00020542,2]
[376025528,1753827045765,-460.0,0.00020542,2]
[376025529,1753827045774,-541.16,0.00020542,2]
[376025530,1753827045783,-460.0,0.00020542,2]
[376025531,1753827045792,-621.75,0.00020542,2]
[376025532,1753827045803,-779.68,0.00020542,2]
[376025533,1753827045812,-460.0,0.00020542,2]
[376025534,1753827045821,-460.0,0.00020542,2]
[376025535,1753827045830,-497.69,0.00020542,2]
[376025536,1753827045840,-755.67,0.00020542,2]
[376025537,1753827045849,-550.2,0.00020542,2]
[376025538,1753827045858,-460.0,0.00020542,2]
[376025539,1753827045868,-460.0,0.00020542,2]
[376025540,1753827045877,-543.73,0.00020542,2]
[376025541,1753827045887,-572.88,0.00020542,2]
[376025542,1753827045896,-460.0,0.00020542,2]
[376025543,1753827045905,-460.0,0.00020542,2]
[376025544,1753827045925,-602.54205183,0.00020542,2]
[376025545,1753827045935,-459.44,0.00020546,3]
[376025546,1753827045944,-460.0,0.00020554,2]
[376025547,1753827045954,-588.15,0.00020554,2]
[376025548,1753827045964,-1366.57,0.00020554,2]
[376025549,1753827045974,-4198.76,0.00020554,2]
[376025550,1753827045985,-1098.41,0.00020554,2]
[376025551,1753827045994,-1052.65,0.00020554,2]
[376025552,1753827046004,-460.0,0.00020554,2]
[376025553,1753827046014,-460.0,0.00020554,2]
[376025554,1753827046023,-1567.84,0.00020554,2]
[376025555,1753827046033,-1136.09,0.00020554,2]
[376025556,1753827046042,-1275.89,0.00020556,2]
[376025557,1753827046051,-460.0,0.00020556,2]
[376025558,1753827046061,-774.72,0.00020556,2]
[376025559,1753827046071,-1025.02,0.00020556,2]
[376025560,1753827046080,-151.110921,0.00020556,2]
[376025561,1753827046090,-533.9,0.00020565,3]
[376025562,1753827046099,-420.0,0.00020598,2]
[376025563,1753827046109,-1417.02870883,0.00020604,2]
[376025564,1753827046122,-1500.0,0.00020681,2]
[376025565,1753827046133,-168.0,0.00020727,2]
[376025566,1753827046142,-227.707738,0.00020736,2]
[376025567,1753827046151,-409.0,0.00020738,2]
[376025568,1753827046161,-168.0,0.00020747,2]
[376025569,1753827046171,-151.0,0.000208,4]
[376025570,1753827046181,-533.9,0.00020803,4]
[376025572,1753827046191,-393.26177566,0.00020806,2]
[376025574,1753827046202,-460.0,0.00020815,2]
[376025576,1753827046212,-3530.26,0.00020815,2]
[376025578,1753827046221,-1759.16,0.00020815,2]
[376025580,1753827046231,-460.0,0.00020815,2]
[376025581,1753827046240,-1070.1,0.00020815,2]
[376025583,1753827046250,-1469.93,0.00020815,2]
[376025584,1753827046259,-460.0,0.00020815,2]
[376025585,1753827046268,-1552.34,0.00020815,2]
[376025586,1753827046278,-460.0,0.00020815,2]
[376025587,1753827046288,-611.59,0.00020815,2]
[376025588,1753827046298,-2329.0,0.00020815,2]
[376025589,1753827046308,-596.36,0.00020816,2]
[376025590,1753827046318,-460.0,0.00020816,2]
[376025591,1753827046328,-151.0,0.00020816,2]
[376025592,1753827046338,-151.0,0.00020816,2]
[376025593,1753827046349,-541.16,0.00020816,2]
[376025594,1753827046359,-460.0,0.00020816,2]
[376025595,1753827046372,-621.75,0.00020816,2]
[376025596,1753827046382,-779.68,0.00020816,2]
[376025599,1753827046392,-151.0,0.00020816,2]
[376025601,1753827046402,-460.0,0.00020816,2]
[376025603,1753827046412,-460.0,0.00020816,2]
[376025605,1753827046422,-497.69,0.00020816,2]
[376025607,1753827046432,-755.67,0.00020816,2]
[376025608,1753827046442,-550.2,0.00020816,2]
[376025610,1753827046452,-460.0,0.00020816,2]
[376025613,1753827046461,-460.0,0.00020816,2]
[376025614,1753827046471,-155.07713,0.00020816,2]
[376025616,1753827046480,-543.73,0.00020816,2]
[376025618,1753827046490,-572.88,0.00020816,2]
[376025621,1753827046500,-460.0,0.00020816,2]
[376025623,1753827046510,-460.0,0.00020816,2]
[376025625,1753827046520,-151.0,0.00020816,2]
[376025627,1753827046529,-151.0,0.00020817,2]
[376025629,1753827046539,-151.0,0.00020817,2]
[376025630,1753827046548,-151.0,0.00020817,2]
[376025633,1753827046563,-151.0,0.00020817,2]
[376025635,1753827046573,-151.335367,0.00020818,2]
[376025637,1753827046582,-460.0,0.00020828,2]
[376025639,1753827046591,-588.15,0.00020828,2]
[376025641,1753827046601,-1366.57,0.00020828,2]
[376025643,1753827046611,-4198.76,0.00020828,2]
[376025645,1753827046620,-1098.41,0.00020828,2]
[376025647,1753827046630,-1052.65,0.00020828,2]
[376025649,1753827046640,-460.0,0.00020828,2]
[376025651,1753827046649,-460.0,0.00020828,2]
[376025653,1753827046659,-1567.84,0.00020828,2]
[376025655,1753827046668,-1275.89,0.0002083,2]
[376025657,1753827046678,-460.0,0.0002083,2]
[376025659,1753827046688,-774.72,0.0002083,2]
[376025661,1753827046697,-1025.02,0.0002083,2]
[376025663,1753827046707,-3421.91782557,0.00020858,2]
[376025665,1753827046717,-500.0,0.0002087,2]
[376025667,1753827046726,-500.0,0.00020899,2]
[376025669,1753827046736,-3278.45114967,0.00020899,2]
[376025671,1753827046745,-3278.45114967,0.00020899,2]
[376025673,1753827046755,-500.0,0.00020899,2]
[376025697,1753827046972,-3278.45114967,0.00020899,2]
[376025699,1753827046982,-3278.45114967,0.00020899,2]
[376025701,1753827046991,-3278.45114967,0.00020899,2]
[376025703,1753827047001,-3278.45114967,0.00020899,2]
[376025705,1753827047010,-3278.45114967,0.00020899,2]
[376025707,1753827047019,-500.0,0.00020899,2]
[376025709,1753827047029,-506.56270506,0.00020899,2]
[376025711,1753827047039,-3278.45114967,0.00020899,2]
[376025713,1753827047049,-3278.45114967,0.00020899,2]
[376025715,1753827047059,-3278.45114967,0.00020899,2]
[376025717,1753827047069,-3278.45114967,0.00020899,2]
[376025719,1753827047079,-3278.45114967,0.00020899,2]
[376025721,1753827047090,-500.0,0.00020899,2]
[376025723,1753827047100,-3278.45114967,0.00020899,2]
[376025725,1753827047110,-3278.45114967,0.00020899,2]
[376025728,1753827047123,-3278.45114967,0.00020899,2]
[376025730,1753827047132,-3278.45114967,0.00020899,2]
[376025732,1753827047142,-3278.45114967,0.00020899,2]
[376025734,1753827047152,-3278.45114967,0.00020899,2]
[376025736,1753827047162,-1434.05,0.000209,2]
[376025738,1753827047172,-168.0,0.00020926,2]
[376025740,1753827047182,-168.0,0.00020967,2]
[376025759,1753827047357,-260.0,0.0002097,2]
[376025761,1753827047368,-150.0,0.00021,2]
[376025763,1753827047378,-533.9,0.00021041,4]
[376025765,1753827047388,-168.0,0.00021083,2]
[376025767,1753827047397,-168.0,0.00021085,2]
[376025769,1753827047407,-460.0,0.00021089,2]
[376025771,1753827047417,-3530.26,0.00021089,2]
[376025773,1753827047427,-1759.16,0.00021089,2]
[376025775,1753827047436,-460.0,0.00021089,2]
[376025777,1753827047446,-1070.1,0.00021089,2]
[376025779,1753827047455,-1469.93,0.00021089,2]
[376025781,1753827047464,-460.0,0.00021089,2]
[376025783,1753827047474,-1552.34,0.00021089,2]
[376025785,1753827047484,-460.0,0.00021089,2]
[376025787,1753827047493,-611.59,0.00021089,2]
[376025789,1753827047503,-2329.0,0.00021089,2]
[376025791,1753827047512,-596.36,0.0002109,2]
[376025793,1753827047521,-460.0,0.0002109,2]
[376025795,1753827047531,-541.16,0.0002109,2]
[376025797,1753827047543,-460.0,0.0002109,2]
[376025799,1753827047552,-621.75,0.0002109,2]
[376025801,1753827047564,-779.68,0.0002109,2]
[376025803,1753827047573,-460.0,0.0002109,2]
[376025805,1753827047582,-460.0,0.0002109,2]
[376025807,1753827047591,-51.8158293,0.0002109,2]
[376025818,1753827047686,-323.84,0.0002109,2]
[376026636,1753827064027,184.0,0.0001879,2]
[376026637,1753827433497,1000.0,0.00017897,2]
[376026641,1753827844001,383.744016,0.00013699,2]
[376026642,1753827896218,8740.0,0.00017896,2]
[376026694,1753828232595,-1917.09910483,0.00018797,2]
[376026696,1753828232605,-1158.5466632,0.00018798,2]
[376026697,1753828232615,-622.75820574,0.00018873,2]
[376026698,1753828232626,-300.0,0.00018893,2]
[376026700,1753828232637,-9416.94910801,0.00018894,2]
[376026702,1753828232647,-460.0,0.00018894,2]
[376026705,1753828232656,-460.0,0.00018894,2]
[376026708,1753828232666,-460.0,0.00018894,2]
[376026713,1753828232677,-195.21239172,0.00018894,2]
[376026717,1753828232687,-460.0,0.00018894,2]
[376026721,1753828232697,-460.0,0.00018894,2]
[376026724,1753828232706,-460.0,0.00018894,2]
[376026727,1753828232716,-1212.9,0.00018894,2]
[376026730,1753828232726,-460.0,0.00018894,2]
[376026731,1753828232736,-570.3408075,0.00018894,2]
[376026732,1753828232747,-460.0,0.00018895,2]
[376026733,1753828232757,-460.0,0.00018895,2]
[376026734,1753828232767,-460.0,0.00018895,2]
[376026735,1753828232779,-460.0,0.00018895,2]
[376026736,1753828232789,-460.0,0.00018895,2]
[376026737,1753828232799,-460.0,0.00018895,2]
[376026738,1753828232809,-460.0,0.00018895,2]
[376026739,1753828232819,-460.0,0.00018895,2]
[376026740,1753828232829,-460.0,0.00018895,2]
[376026741,1753828232839,-463.50797996,0.00018895,2]
[376026742,1753828232849,-145.51194174,0.00018895,2]
[376026743,1753828232862,-314.48805826,0.00018895,2]
[376026744,1753828232872,-460.0,0.00018895,2]
[376026745,1753828232881,-460.0,0.00018895,2]
[376026746,1753828232891,-401.29539484,0.00018895,2]
[376026747,1753828232901,-460.0,0.00018895,2]
[376026748,1753828232911,-460.0,0.00018895,2]
[376026749,1753828232920,-460.0,0.00018895,2]
[376026750,1753828232930,-460.0,0.00018895,2]
[376026751,1753828232940,-335.22830016,0.00018895,2]
[376026752,1753828232950,-460.0,0.00018895,2]
[376026753,1753828232959,-460.0,0.00018895,2]
[376026754,1753828232970,-269.04747874,0.00018895,2]
[376026760,1753828238786,-190.95252126,0.00018895,2]
[376026761,1753828238796,-460.0,0.00018895,2]
[376026762,1753828238806,-460.0,0.00018895,2]
[376026763,1753828238816,-460.0,0.00018895,2]
[376026764,1753828238826,-460.0,0.00018895,2]
[376026765,1753828238835,-460.0,0.00018895,2]
[376026766,1753828238845,-460.0,0.00018895,2]
[376026767,1753828238854,-603.96312297,0.00018895,2]
[376026768,1753828238864,-460.0,0.00018895,2]
[376026769,1753828238873,-460.0,0.00018895,2]
[376026770,1753828238884,-460.0,0.00018895,2]
[376026771,1753828238895,-1788.76,0.00018895,2]
[376026772,1753828238904,-460.0,0.00018895,2]
[376026774,1753828238914,-460.0,0.00018895,2]
[376026776,1753828238923,-460.0,0.00018895,2]
[376026778,1753828238933,-460.0,0.00018895,2]
[376026780,1753828238942,-196.29828613,0.00018895,2]
[376026783,1753828238954,-263.70171387,0.00018895,2]
[376026785,1753828238964,-460.0,0.00018895,2]
[376026787,1753828238973,-669.83,0.00018895,2]
[376026789,1753828238982,-460.0,0.00018895,2]
[376026790,1753828238992,-460.0,0.00018895,2]
[376026792,1753828239002,-460.0,0.00018895,2]
[376026794,1753828239012,-460.0,0.00018895,2]
[376026796,1753828239021,-460.0,0.00018895,2]
[376026798,1753828239031,-1458.37,0.00018895,2]
[376026800,1753828239041,-460.0,0.00018895,2]
[376026802,1753828239050,-460.0,0.00018895,2]
[376026804,1753828239060,-460.0,0.00018895,2]
[376026806,1753828239069,-460.0,0.00018895,2]
[376026808,1753828239079,-902.6,0.00018895,2]
[376026810,1753828239088,-460.0,0.00018895,2]
[376026812,1753828239098,-2934.93,0.00018895,2]
[376026814,1753828239107,-460.0,0.00018895,2]
[376026816,1753828239116,-460.0,0.00018895,2]
[376026818,1753828239126,-460.0,0.00018895,2]
[376026820,1753828239136,-460.0,0.00018895,2]
[376026822,1753828239146,-460.0,0.00018895,2]
[376026824,1753828239155,-468.17,0.00018895,2]
[376026827,1753828239165,-460.0,0.00018895,2]
[376026828,1753828239174,-426.30299753,0.00018895,2]
[376026830,1753828239184,-460.0,0.00018895,2]
[376026833,1753828239194,-460.0,0.00018895,2]
[376026835,1753828239203,-460.0,0.00018895,2]
[376026837,1753828239213,-460.0,0.00018895,2]
[376026839,1753828239223,-472.66,0.00018895,2]
[376026841,1753828239233,-460.0,0.00018895,2]
[376026843,1753828239242,-460.0,0.00018895,2]
[376026845,1753828239251,-460.0,0.00018895,2]
[376026847,1753828239260,-460.0,0.00018895,2]
[376026849,1753828239269,-426.10617916,0.00018895,2]
[376026851,1753828239280,-460.0,0.00018896,2]
[376026853,1753828239289,-460.0,0.00018896,2]
[376026855,1753828239299,-460.0,0.00018896,2]
[376026857,1753828239308,-460.0,0.00018896,2]
[376026859,1753828239318,-460.0,0.00018896,2]
[376026861,1753828239328,-460.0,0.00018896,2]
[376026882,1753828239519,-460.0,0.00018896,2]
[376026884,1753828239531,-460.0,0.00018896,2]
[376026886,1753828239540,-460.0,0.00018896,2]
[376026888,1753828239550,-460.0,0.00018896,2]
[376026890,1753828239561,-460.0,0.00018896,2]
[376026892,1753828239571,-460.0,0.00018896,2]
[376026894,1753828239580,-460.0,0.00018896,2]
[376026896,1753828239590,-460.0,0.00018896,2]
[376026898,1753828239600,-460.0,0.00018896,2]
[376026900,1753828239610,-460.0,0.00018896,2]
[376026902,1753828239620,-527.16458066,0.00018896,2]
[376026904,1753828239630,-466.48165428,0.00018896,2]
[376026906,1753828239640,-460.0,0.00018896,2]
[376026908,1753828239650,-460.0,0.00018896,2]
[376026910,1753828239659,-460.0,0.00018896,2]
[376026912,1753828239670,-460.0,0.00018896,2]
[376026914,1753828239680,-460.0,0.00018896,2]
[376026916,1753828239689,-460.0,0.00018896,2]
[376026918,1753828239698,-460.0,0.00018896,2]
[376026920,1753828239709,-460.0,0.00018896,2]
[376026922,1753828239718,-460.0,0.00018896,2]
[376026924,1753828239728,-460.0,0.00018896,2]
[376026927,1753828239748,-293.0421174,0.00018896,2]
[376026944,1753828239897,-166.9578826,0.00018896,2]
[376026946,1753828239907,-460.0,0.00018896,2]
[376026948,1753828239916,-460.0,0.00018896,2]
[376026950,1753828239926,-460.0,0.00018896,2]
[376026952,1753828239935,-460.0,0.00018896,2]
[376026954,1753828239944,-460.0,0.00018896,2]
[376026956,1753828239955,-909.36,0.00018896,2]
[376026958,1753828239965,-460.0,0.00018896,2]
[376026960,1753828239975,-460.0,0.00018896,2]
[376026962,1753828239985,-468.28866467,0.00018896,2]
[376026964,1753828239994,-510.08,0.00018896,2]
[376026966,1753828240004,-475.53,0.00018896,2]
[376026968,1753828240013,-460.0,0.00018896,2]
[376026970,1753828240022,-460.0,0.00018896,2]
[376026972,1753828240036,-460.0,0.00018896,2]
[376026974,1753828240045,-460.0,0.00018896,2]
[376026977,1753828240055,-502.912933,0.00018896,2]
[376026979,1753828240065,-460.0,0.00018896,2]
[376026981,1753828240075,-460.0,0.00018896,2]
[376026984,1753828240084,-1261.9,0.00018896,2]
[376026986,1753828240094,-460.0,0.00018896,2]
[376026987,1753828240104,-1149.88,0.00018897,2]
[376026990,1753828240113,-460.0,0.00018897,2]
[376026992,1753828240122,-460.0,0.00018897,2]
[376026994,1753828240132,-460.0,0.00018897,2]
[376026997,1753828240141,-460.0,0.00018897,2]
[376027001,1753828240151,-523.64,0.00018897,2]
[376027003,1753828240160,-460.0,0.00018897,2]
[376027006,1753828240169,-460.0,0.00018897,2]
[376027008,1753828240179,-460.0,0.00018897,2]
[376027011,1753828240189,-460.0,0.00018897,2]
[376027014,1753828240198,-460.0,0.00018897,2]
[376027017,1753828240207,-460.0,0.00018897,2]
[376027020,1753828240216,-460.0,0.00018897,2]
[376027023,1753828240227,-460.0,0.00018897,2]
[376027025,1753828240236,-484.89,0.00018897,2]
[376027028,1753828240246,-460.0,0.00018897,2]
[376027030,1753828240255,-460.0,0.00018897,2]
[376027031,1753828240265,-460.0,0.00018897,2]
[376027033,1753828240276,-460.0,0.00018897,2]
[376027036,1753828240285,-460.0,0.00018897,2]
[376027038,1753828240295,-215.38054445,0.00018897,2]
[376027040,1753828240304,-460.0,0.00018897,2]
[376027042,1753828240313,-512.48,0.00018897,2]
[376027044,1753828240323,-460.0,0.00018897,2]
[376027046,1753828240332,-472.11330384,0.00018897,2]
[376027048,1753828240342,-460.0,0.00018897,2]
[376027050,1753828240351,-460.0,0.00018897,2]
[376027052,1753828240360,-460.0,0.00018897,2]
[376027054,1753828240369,-460.0,0.00018897,2]
[376027056,1753828240379,-460.0,0.00018897,2]
[376027058,1753828240388,-487.65,0.00018897,2]
[376027060,1753828240398,-460.0,0.00018897,2]
[376027062,1753828240407,-460.0,0.00018897,2]
[376027064,1753828240416,-460.0,0.00018898,2]
[376027066,1753828240426,-501.54383892,0.00018898,2]
[376027068,1753828240436,-460.0,0.00018898,2]
[376027070,1753828240445,-460.0,0.00018898,2]
[376027072,1753828240455,-460.0,0.00018898,2]
[376027074,1753828240464,-460.0,0.00018898,2]
[376027076,1753828240475,-847.56,0.00018898,2]
[376027078,1753828240486,-460.0,0.00018898,2]
[376027080,1753828240495,-895.15,0.00018898,2]
[376027082,1753828240505,-500.0,0.00018898,2]
[376027084,1753828240514,-234.49647835,0.000189,2]
[376027086,1753828240526,-3578.55,0.0001891,2]
[376027088,1753828240536,-563.23,0.0001891,2]
[376027090,1753828240545,-996.81,0.0001891,2]
[376027092,1753828240557,-460.0,0.0001891,2]
[376027094,1753828240567,-460.0,0.0001891,2]
[376027096,1753828240577,-1383.74,0.0001891,2]
[376027098,1753828240586,-460.0,0.0001891,2]
[376027100,1753828240595,-18216.68116111,0.00019015,2]
[376027219,1753828242017,-432.81152934,0.00019015,2]
[376027221,1753828242030,-463.13746388,0.00019015,2]
[376027223,1753828243643,-476.07036022,0.00019015,2]
[376027622,1753828284836,150.0,0.00022402,30]
[376027623,1753828371401,150.0,0.00022392,30]
[376027624,1753828447651,150.0,0.00022399,30]
[376027625,1753828525991,150.0,0.00022063,30]
[376027626,1753828561355,1143.53272627,0.00026064,120]
[376027627,1753828570885,-294.40644125,0.00018796,2]
[376027628,1753828572694,1000.0,0.00017895,2]
[376027629,1753828577024,294.40644125,0.000188,6]
[376027630,1753828792954,22107.1288907,0.00017897,2]
[376027634,1753828876397,207.853922,0.00023,30]
[376027635,1753828876709,207.853922,0.00023,30]
[376027636,1753828877022,207.853922,0.00023,30]